lending/lending_fUSD_20240622
["ID","MTS","AMOUNT","RATE_DAILY","PERIOD"]
[330134809,1719033045706,-106300.51189698,0.00014,2]
[330134810,1719033045740,-771.12580275,0.00014,2]
[330134811,1719033045758,-21519.20363675,0.00014,2]
[330134812,1719033045800,-6037.72443787,0.00014,2]
[330134813,1719033045814,-13413.10303866,0.00014,2]
[330134814,1719033045826,-9670.89276934,0.00014,2]
[330134815,1719033045839,-544.68072996,0.00014,2]
[330134816,1719033045851,-295.12565298,0.00014,2]
[330134817,1719033045864,-501.50580398,0.00014,2]
[330134818,1719033045876,-2346.445475,0.00014,2]
[330134819,1719033045899,-967.0,0.00014,2]
[330134820,1719033045910,-769.05650803,0.00014,2]
[330134821,1719033045921,-417.50900005,0.00014,2]
[330134822,1719033045933,-605.50432414,0.00014,2]
[330134823,1719033045946,-2066.84254363,0.00014,2]
[330134824,1719033045989,-644.05,0.00014,2]
[330134825,1719033046000,-278.97054483,0.00014,2]
[330134826,1719033046012,-1900.443,0.00014,2]
[330134827,1719033080335,312.83812338,0.00016969,30]
[330134828,1719033099630,427.0,0.00025,30]
[330134839,1719033140420,151.91,0.00018849,30]
[330134859,1719033198671,200.0,0.00025921,120]
[330134860,1719033204147,1000.0,0.00025921,120]
[330134861,1719033207623,200.0,0.00025216,120]
[330134862,1719033208056,200.0,0.00025632,120]
[330134863,1719033208783,200.0,0.00025999,120]
[330134865,1719033234105,178.70586487,0.00025,30]
[330134867,1719033271327,312.83812338,0.00024645,60]
[330134888,1719033317751,151.0,0.00022896,30]
[330134889,1719033317825,151.0,0.00022438,120]
[330134891,1719033375863,-190.0,0.00028964,30]
[330134892,1719033375891,-304.93547578,0.00028964,120]
[330134893,1719033375917,-157.90766918,0.00028964,120]
[330134894,1719033375944,-161.68041796,0.00028964,120]
[330134895,1719033375970,-500.0,0.00028964,120]
[330134896,1719033375997,-295.43396369,0.00028964,120]
[330134897,1719033376023,-3086.8296686,0.00028964,120]
[330134898,1719033376050,-525.24750184,0.00028964,120]
[330134899,1719033376078,-8631.44653943,0.00028964,120]
[330134900,1719033376103,-423.7593,0.00028964,30]
[330134901,1719033376127,-1053.59224129,0.00028964,120]
[330134902,1719033376151,-216.1702515,0.00028964,60]
[330134903,1719033376176,-150.73839039,0.00028964,31]
[330134904,1719033376200,-289.66263863,0.00028964,120]
[330134905,1719033376226,-288.93615764,0.00028964,120]
[330134906,1719033376249,-458.64842113,0.00028964,120]
[330134907,1719033376275,-153.51825833,0.00028964,30]
[330134908,1719033376300,-312.20159529,0.00028964,30]
[330134909,1719033376326,-483.58119471,0.00028964,120]
[330134910,1719033376350,-190.0,0.00028964,30]
[330134911,1719033376376,-1495.25153604,0.00028964,30]
[330134912,1719033389189,-500.0,0.0002574,30]
[330134913,1719033389216,-500.0,0.0002574,30]
[330134914,1719033389241,-500.0,0.0002574,30]
[330134915,1719033389267,-500.0,0.0002574,30]
[330134916,1719033389292,-500.0,0.0002574,30]
[330134917,1719033389318,-500.0,0.0002574,30]
[330134918,1719033389343,-500.0,0.0002574,30]
[330134919,1719033389368,-394.61176026,0.0002574,30]
[330134920,1719033389400,-200.0,0.00026315,120]
[330134921,1719033389428,-200.0,0.00026353,120]
[330134922,1719033389454,-200.0,0.00026632,120]
[330134923,1719033389479,-200.0,0.00026706,120]
[330134924,1719033389504,-1270.60853789,0.00026912,30]
[330134925,1719033389533,-200.0,0.00026948,120]
[330134926,1719033389558,-313.25274355,0.00027,90]
[330134927,1719033389585,-200.0,0.0002706,120]
[330134928,1719033389610,-200.0,0.00027264,120]
[330134929,1719033389637,-237.75,0.00027397,30]
[330134930,1719033389661,-2000.0,0.00027397,30]
[330134931,1719033389686,-2000.0,0.00027397,30]
[330134932,1719033389710,-2000.0,0.00027397,30]
[330134933,1719033389734,-2000.0,0.00027397,30]
[330134934,1719033389759,-2000.0,0.00027397,30]
[330134935,1719033389783,-2000.0,0.00027397,30]
[330134936,1719033389808,-2000.0,0.00027397,30]
[330134937,1719033389833,-2000.0,0.00027397,30]
[330134938,1719033389856,-2000.0,0.00027397,30]
[330134939,1719033389880,-1570.60967239,0.00027397,30]
[330134940,1719033389906,-200.0,0.00027397,60]
[330134941,1719033389932,-200.0,0.00027413,120]
[330134942,1719033389958,-237.75,0.00027534,30]
[330134943,1719033389982,-200.0,0.0002758,120]
[330134944,1719033390007,-237.75,0.00027671,30]
[330134945,1719033390032,-200.0,0.00027767,120]
[330134946,1719033390056,-237.75,0.00027808,30]
[330134947,1719033390081,-200.0,0.00027896,120]
[330134948,1719033390105,-237.75,0.00027945,30]
[330134949,1719033390128,-1724.9445409,0.00028,30]
[330134950,1719033390152,-237.75,0.00028082,30]
[330134951,1719033390175,-200.0,0.0002812,120]
[330134952,1719033390200,-261.115284,0.00028213,120]
[330134953,1719033390224,-237.75,0.00028219,30]
[330134954,1719033390248,-151.52084922,0.00028297,120]
[330134955,1719033390273,-237.75,0.00028356,30]
[330134956,1719033390298,-150.0,0.00028357,120]
[330134957,1719033390322,-202.986848,0.00028474,120]
[330134958,1719033390347,-237.75,0.00028493,30]
[330134959,1719033390371,-237.75,0.0002863,30]
[330134960,1719033390395,-1208.0,0.00028654,30]
[330134961,1719033390420,-150.0,0.00028656,120]
[330134962,1719033390446,-237.75,0.00028767,30]
[330134963,1719033390473,-237.75,0.00028904,30]
[330134964,1719033390501,-237.75,0.00029041,30]
[330134965,1719033390527,-237.75,0.00029178,30]
[330134966,1719033390550,-237.75,0.00029315,30]
[330134967,1719033390575,-150.0,0.00029353,120]
[330134968,1719033390599,-237.75,0.00029452,30]
[330134969,1719033390623,-237.75,0.00029589,30]
[330134970,1719033390648,-237.75,0.00029726,30]
[330134971,1719033390673,-55700.0,0.000298,30]
[330134972,1719033390698,-237.75,0.00029863,30]
[330134973,1719033390723,-150.0,0.00029872,120]
[330134974,1719033390747,-237.75,0.00029999,30]
[330134975,1719033390773,-199.999999,0.0003,60]
[330134976,1719033390798,-1403.78113078,0.0003,60]
[330134977,1719033390823,-152.0,0.0003,90]
[330134978,1719033390849,-338.49202151,0.0003,120]
[330134979,1719033390874,-237.75,0.00030136,30]
[330134980,1719033390898,-835.72,0.00030136,120]
[330134981,1719033390922,-835.72,0.00030136,120]
[330134982,1719033390946,-835.72,0.00030136,120]
[330134983,1719033390970,-835.72,0.00030136,120]
[330134984,1719033390995,-835.72,0.00030136,120]
[330134985,1719033391019,-835.72,0.00030136,120]
[330134986,1719033391044,-835.72,0.00030136,120]
[330134987,1719033391072,-835.72,0.00030136,120]
[330134988,1719033391096,-835.72,0.00030136,120]
[330134989,1719033391120,-835.72,0.00030136,120]
[330134990,1719033391145,-835.72,0.00030136,120]
[330134991,1719033391171,-835.72,0.00030136,120]
[330134992,1719033391195,-835.72,0.00030136,120]
[330134993,1719033391219,-835.72,0.00030136,120]
[330134994,1719033391244,-835.72,0.00030136,120]
[330134995,1719033391273,-835.72,0.00030136,120]
[330134996,1719033391298,-835.72,0.00030136,120]
[330134997,1719033391323,-835.72,0.00030136,120]
[330134998,1719033391347,-835.72,0.00030136,120]
[330134999,1719033391372,-835.72,0.00030136,120]
[330135000,1719033391399,-835.72,0.00030136,120]
[330135001,1719033391427,-835.72,0.00030136,120]
[330135002,1719033391450,-835.72,0.00030136,120]
[330135003,1719033391474,-835.82418863,0.00030136,120]
[330135004,1719033391498,-200.0,0.00030137,60]
[330135005,1719033391525,-237.75,0.00030273,30]
[330135006,1719033391548,-237.75,0.0003041,30]
[330135007,1719033391572,-237.87570511,0.00030547,30]
[330135008,1719033391596,-250.0,0.000308,30]
[330135009,1719033391621,-150.0,0.00030821,120]
[330135010,1719033391648,-150.0,0.00031006,120]
[330135011,1719033391674,-150.0,0.00031074,120]
[330135012,1719033391917,-150.0,0.00031159,120]
[330135013,1719033391945,-150.0,0.0003116,120]
[330135014,1719033391975,-150.0,0.00032136,120]
[330135015,1719033392001,-260.80475843,0.00032393,40]
[330135017,1719033392026,-151.91,0.00032548,30]
[330135018,1719033392050,-465.42006151,0.00032876,30]
[330135019,1719033392078,-200.0,0.00032877,60]
[330135020,1719033392103,-4000.0,0.00032877,30]
[330135021,1719033392129,-159.0855067,0.00033,120]
[330135022,1719033392155,-161.97766407,0.00033,30]
[330135023,1719033392181,-247.16,0.00033151,120]
[330135024,1719033392207,-157.63,0.000335,31]
[330135025,1719033392235,-157.63,0.000335,31]
[330135026,1719033392262,-150.0,0.00033705,120]
[330135027,1719033392288,-150.0,0.00033923,120]
[330135028,1719033392314,-767.92909891,0.00034,120]
[330135029,1719033392341,-150.0,0.00034938,120]
[330135030,1719033392368,-200.0,0.00035,120]
[330135031,1719033392393,-217.94018001,0.00035,120]
[330135032,1719033392419,-421.28084894,0.00035,30]
[330135033,1719033392448,-150.0,0.00035384,120]
[330135034,1719033392475,-157.63,0.000355,31]
[330135035,1719033392501,-157.63,0.000355,31]
[330135036,1719033392527,-600.0,0.00035616,32]
[330135037,1719033392551,-501.31951984,0.00035616,42]
[330135038,1719033392575,-209.10147377,0.00035616,60]
[330135039,1719033392600,-150.0,0.00035798,120]
[330135040,1719033392626,-150.0,0.00036187,120]
[330135041,1719033392650,-150.0,0.00037359,120]
[330135042,1719033392674,-157.63,0.000375,31]
[330135043,1719033392699,-157.63,0.000375,31]
[330135044,1719033392724,-155.0,0.00038,90]
[330135045,1719033392749,-200.0,0.00038356,60]
[330135047,1719033392774,-150.0,0.00038625,120]
[330135048,1719033392798,-137843.53591739,0.000388,30]
[330135049,1719033392822,-24813.96669408,0.000388,30]
[330135050,1719033392846,-4889.14422201,0.000388,30]
[330135051,1719033392871,-1000000.0,0.000388,30]
[330135052,1719033392895,-1352.41055718,0.00039,120]
[330135053,1719033392920,-150.0,0.00039091,120]
[330135054,1719033392945,-150.0,0.00039198,120]
[330135055,1719033392969,-182.63330026,0.000395,30]
[330135056,1719033392995,-157.63,0.000395,31]
[330135057,1719033393019,-157.63,0.000395,31]
[330135058,1719033393043,-300.0,0.00039752,120]
[330135059,1719033393067,-500000.0,0.000398,30]
[330135060,1719033393090,-262.82579625,0.0003985,30]
[330135061,1719033393113,-995.41564593,0.00039998,60]
[330135062,1719033393137,-250.0,0.00039999,30]
[330135063,1719033393165,-50000.0,0.0004,30]
[330135064,1719033393189,-45210.53039678,0.0004,30]
[330135065,1719033393214,-477.12749073,0.0004,30]
[330135066,1719033393238,-397.36442446,0.0004,30]
[330135067,1719033393261,-410.0,0.0004,30]
[330135068,1719033393287,-303.28221703,0.0004,120]
[330135069,1719033393310,-152.04679631,0.0004,30]
[330135070,1719033393334,-200.0,0.0004,120]
[330135071,1719033393358,-1000.0,0.0004,120]
[330135072,1719033393382,-277.94639267,0.0004,30]
[330135073,1719033393406,-250.0,0.0004,60]
[330135074,1719033393430,-250.0,0.0004,60]
[330135075,1719033393458,-337.42,0.0004,120]
[330135076,1719033393483,-162.82815,0.00040088,30]
[330135077,1719033393508,-162.82815,0.00040288,30]
[330135078,1719033393535,-162.82815,0.00040488,30]
[330135079,1719033393561,-150.0,0.00040643,120]
[330135080,1719033393586,-162.82815,0.00040688,30]
[330135081,1719033393609,-2000.0,0.000407,81]
[330135082,1719033393634,-188.981739,0.000408,30]
[330135083,1719033393659,-755.926946,0.000408,30]
[330135084,1719033393682,-416.28,0.00041,120]
[330135085,1719033393708,-544.0,0.00041,30]
[330135086,1719033393734,-152.0,0.00041041,31]
[330135087,1719033393758,-162.82815,0.00041088,30]
[330135088,1719033393786,-510.0,0.00041095,120]
[330135089,1719033393810,-1000.0,0.00041095,120]
[330135090,1719033393835,-1000.0,0.00041095,120]
[330135091,1719033393859,-1001.11440846,0.00041095,120]
[330135092,1719033393882,-200.0,0.00041096,60]
[330135093,1719033393907,-1000.0,0.00041096,30]
[330135094,1719033393931,-150.0,0.0004116,30]
[330135095,1719033393955,-150.0,0.0004119,120]
[330135096,1719033393978,-162.82815,0.00041288,30]
[330135097,1719033394002,-510.0,0.00041369,120]
[330135098,1719033394029,-150.0,0.00041387,120]
[330135099,1719033394052,-393.07779516,0.000414,30]
[330135100,1719033394076,-157.63,0.000414,31]
[330135101,1719033394100,-157.63,0.000414,31]
[330135102,1719033394123,-162.82815,0.00041488,30]
[330135103,1719033394146,-300.0,0.00041506,120]
[330135104,1719033394171,-150.0,0.00041636,120]
[330135105,1719033394196,-510.0,0.00041643,120]
[330135106,1719033394221,-1000.0,0.00041644,30]
[330135107,1719033394246,-162.82815,0.00041688,30]
[330135108,1719033394270,-346.9739997,0.0004182,120]
[330135109,1719033394296,-537755.6162833,0.0004188,30]
[330135110,1719033394323,-161.07230629,0.000419,120]
[330135111,1719033394347,-510.0,0.00041917,120]
[330135112,1719033394373,-50000.0,0.00042,32]
[330135113,1719033394397,-277.4341236,0.00042,120]
[330135114,1719033394422,-30970.37688006,0.00042,120]
[330135115,1719033394451,-212.50217588,0.00042191,120]
[330135116,1719033394476,-1000.0,0.00042192,30]
[330135117,1719033394703,-9388.52215359,0.000423,90]
[330135118,1719033394727,-1292.342661,0.00042457,30]
[330135119,1719033394752,-195.869101,0.00042457,30]
[330135120,1719033394776,-188.417306,0.00042457,30]
[330135121,1719033394800,-6294.063449,0.00042457,30]
[330135122,1719033394823,-5664.51418,0.00042457,30]
[330135123,1719033394848,-182.393846,0.00042457,30]
[330135124,1719033394871,-164.190113,0.00042457,30]
[330135125,1719033394895,-953.761172,0.00042457,30]
[330135126,1719033394919,-183.460006,0.00042457,30]
[330135127,1719033394943,-1053.687018,0.00042457,30]
[330135128,1719033394966,-169.981477,0.00042457,30]
[330135129,1719033394995,-3120.423113,0.00042457,30]
[330135130,1719033395018,-165.29123,0.00042457,30]
[330135131,1719033395044,-165.291226,0.00042457,30]
[330135132,1719033395067,-1497.404911,0.00042457,30]
[330135133,1719033395090,-15802.90704,0.00042457,30]
[330135134,1719033395113,-520.46941084,0.000426,33]
[330135135,1719033395138,-1000.0,0.0004274,30]
[330135136,1719033395162,-418372.71648462,0.000428,60]
[330135137,1719033395913,312.83812338,0.00024645,60]
[330135138,1719033400206,-150.0,0.0004,30]
[330135139,1719033400232,-875.79573855,0.000409,120]
[330135140,1719033400258,-227369.28351538,0.000428,60]
[330135141,1719033400281,-186.99041989,0.0004288,120]
[330135142,1719033400305,-1292.342661,0.00042987,30]
[330135143,1719033400329,-188.417306,0.00042987,30]
[330135144,1719033400354,-6294.063449,0.00042987,30]
[330135145,1719033400377,-5664.51418,0.00042987,30]
[330135146,1719033400704,-164.190113,0.00042987,30]
[330135147,1719033400731,-953.761172,0.00042987,30]
[330135148,1719033400760,-1053.687018,0.00042987,30]
[330135149,1719033400784,-3120.423113,0.00042987,30]
[330135150,1719033400807,-1497.404911,0.00042987,30]
[330135151,1719033400831,-15802.90704,0.00042987,30]
[330135152,1719033400856,-1000.0,0.00043,30]
[330135153,1719033400881,-1076.0,0.00043,120]
[330135154,1719033400904,-200.84654174,0.0004302,120]
[330135155,1719033400928,-348.93032,0.00043092,30]
[330135156,1719033400952,-839.805345,0.00043092,30]
[330135157,1719033400976,-22890.214006,0.00043092,30]
[330135158,1719033401000,-24894.054592,0.00043092,30]
[330135159,1719033401023,-490.358184,0.00043092,30]
[330135160,1719033401047,-300.0,0.0004326,120]
[330135161,1719033401071,-1000.0,0.00043288,30]
[330135162,1719033401096,-456.0,0.000435,30]
[330135163,1719033401120,-1292.342661,0.00043518,30]
[330135164,1719033401143,-188.417306,0.00043518,30]
[330135165,1719033401168,-6294.063449,0.00043518,30]
[330135166,1719033401193,-5664.51418,0.00043518,30]
[330135167,1719033401218,-164.190113,0.00043518,30]
[330135168,1719033401241,-953.761172,0.00043518,30]
[330135169,1719033401264,-1053.687018,0.00043518,30]
[330135170,1719033401288,-3120.423113,0.00043518,30]
[330135171,1719033401313,-1497.404911,0.00043518,30]
[330135172,1719033401336,-15802.90704,0.00043518,30]
[330135173,1719033401360,-348.93032,0.00043631,30]
[330135174,1719033401385,-839.805345,0.00043631,30]
[330135175,1719033401409,-22890.214006,0.00043631,30]
[330135176,1719033401438,-24894.054592,0.00043631,30]
[330135177,1719033401463,-490.358184,0.00043631,30]
[330135178,1719033401487,-2000.0,0.00043781,30]
[330135179,1719033401510,-305.46525588,0.000438,120]
[330135180,1719033401534,-464.61540233,0.000438,30]
[330135181,1719033401558,-470.11473502,0.000438,120]
[330135182,1719033401582,-251.6442076,0.000438,120]
[330135183,1719033401608,-973.18,0.00043835,120]
[330135184,1719033401633,-500.0,0.00043835,120]
[330135185,1719033401658,-200.0,0.00043836,60]
[330135186,1719033401685,-1000.0,0.00043836,30]
[330135187,1719033401712,-498.08566882,0.0004388,30]
[330135188,1719033401743,-50000.0,0.00044,34]
[330135189,1719033401768,-269.40023355,0.00044,120]
[330135190,1719033401792,-221.93841657,0.00044,60]
[330135191,1719033401820,-1000.0,0.00044,120]
[330135192,1719033401847,-220.0,0.00044,120]
[330135193,1719033401875,-679.218512,0.00044,57]
[330135194,1719033401902,-1292.342661,0.00044049,30]
[330135195,1719033401928,-188.417306,0.00044049,30]
[330135196,1719033401954,-6294.063449,0.00044049,30]
[330135197,1719033401980,-5664.51418,0.00044049,30]
[330135198,1719033402008,-164.190113,0.00044049,30]
[330135199,1719033402035,-953.761172,0.00044049,30]
[330135200,1719033402060,-1053.687018,0.00044049,30]
[330135201,1719033402085,-3120.423113,0.00044049,30]
[330135202,1719033402111,-1497.404911,0.00044049,30]
[330135203,1719033402136,-15802.90704,0.00044049,30]
[330135204,1719033402160,-348.93032,0.0004417,30]
[330135205,1719033402185,-839.805345,0.0004417,30]
[330135206,1719033402209,-22890.214006,0.0004417,30]
[330135207,1719033402235,-24894.054592,0.0004417,30]
[330135208,1719033402258,-490.358184,0.0004417,30]
[330135209,1719033402282,-886.62023158,0.000442,120]
[330135210,1719033402306,-886.62023158,0.000442,120]
[330135211,1719033402331,-886.62023158,0.000442,120]
[330135212,1719033402355,-886.62023158,0.000442,120]
[330135213,1719033402378,-886.62023158,0.000442,120]
[330135214,1719033402402,-973.18,0.00044383,120]
[330135215,1719033402429,-500.0,0.00044383,120]
[330135216,1719033402454,-1000.0,0.00044384,30]
[330135217,1719033402480,-247.16,0.00044384,120]
[330135218,1719033402504,-195.869101,0.00044579,30]
[330135219,1719033402530,-169.981477,0.00044579,30]
[330135220,1719033402554,-1292.342661,0.00044579,30]
[330135221,1719033402577,-188.417306,0.00044579,30]
[330135222,1719033402601,-6294.063449,0.00044579,30]
[330135223,1719033402624,-5664.51418,0.00044579,30]
[330135224,1719033402647,-164.190113,0.00044579,30]
[330135225,1719033402671,-953.761172,0.00044579,30]
[330135226,1719033402697,-1053.687018,0.00044579,30]
[330135227,1719033402722,-3120.423113,0.00044579,30]
[330135228,1719033402746,-1497.404911,0.00044579,30]
[330135229,1719033402770,-15802.90704,0.00044579,30]
[330135230,1719033402793,-348.93032,0.00044708,30]
[330135231,1719033402818,-839.805345,0.00044708,30]
[330135232,1719033402843,-22890.214006,0.00044708,30]
[330135233,1719033402866,-24894.054592,0.00044708,30]
[330135234,1719033402889,-490.358184,0.00044708,30]
[330135235,1719033402914,-973.18,0.00044931,120]
[330135236,1719033402938,-597.98798241,0.00044931,120]
[330135237,1719033402964,-1000.0,0.00044932,30]
[330135238,1719033402991,-500000.0,0.00045,50]
[330135239,1719033403018,-200.0,0.00045,120]
[330135240,1719033403043,-232.59903924,0.00045,30]
[330135241,1719033403069,-150.0,0.00045,85]
[330135242,1719033403098,-199.66387607,0.00045,120]
[330135243,1719033403124,-1000.0,0.00045,120]
[330135244,1719033403150,-614.81791167,0.00045,60]
[330135245,1719033403177,-156.46455791,0.00045,30]
[330135246,1719033403203,-339.18457378,0.00045013,120]
[330135247,1719033403228,-172.0,0.00045169,90]
[330135248,1719033403255,-150.0,0.00045219,120]
[330135249,1719033403280,-348.93032,0.00045247,30]
[330135250,1719033403513,-839.805345,0.00045247,30]
[330135251,1719033403539,-22890.214006,0.00045247,30]
[330135252,1719033403564,-24894.054592,0.00045247,30]
[330135253,1719033403588,-490.358184,0.00045247,30]
[330135254,1719033403612,-4400.0,0.00045385,108]
[330135255,1719033403637,-973.18,0.00045479,120]
[330135256,1719033403662,-1000.0,0.00045479,30]
[330135257,1719033403687,-150.07701964,0.0004576,35]
[330135258,1719033403712,-50000.0,0.00046,36]
[330135259,1719033403736,-40000.0,0.00046,120]
[330135260,1719033403760,-239.0,0.00046,120]
[330135261,1719033403784,-167.5,0.00046,96]
[330135262,1719033403811,-973.18,0.00046027,120]
[330135263,1719033403834,-1000.0,0.00046027,30]
[330135264,1719033403859,-151.91,0.00046247,120]
[330135265,1719033403883,-150.0,0.00046423,120]
[330135266,1719033403910,-973.18,0.00046575,120]
[330135267,1719033403937,-254.90746432,0.00046575,60]
[330135268,1719033403964,-1018.51548517,0.00046575,30]
[330135269,1719033403991,-150.0,0.00046583,120]
[330135270,1719033404018,-150.0,0.00046944,120]
[330135271,1719033404043,-150.0,0.00047088,120]
[330135272,1719033404067,-973.18,0.00047123,120]
[330135273,1719033404093,-500.0,0.000473,120]
[330135274,1719033404121,-273.48689146,0.0004748,120]
[330135275,1719033404149,-500000.0,0.000475,60]
[330135276,1719033404174,-973.18,0.00047671,120]
[330135277,1719033404198,-228.26778782,0.00047994,40]
[330135278,1719033404223,-268.40744715,0.00047994,40]
[330135279,1719033404250,-50000.0,0.00048,38]
[330135280,1719033404275,-1297.72964699,0.00048,60]
[330135281,1719033404300,-150.0,0.00048186,120]
[330135282,1719033404326,-973.18,0.00048219,120]
[330135283,1719033404350,-503.0,0.00048337,30]
[330135284,1719033404375,-500.0,0.00048337,30]
[330135285,1719033404402,-400000.0,0.000485,65]
[330135286,1719033404425,-286.54522234,0.000487,120]
[330135287,1719033404454,-973.18,0.00048767,120]
[330135288,1719033404477,-201.12256905,0.000488,120]
[330135289,1719033404501,-1039.0,0.00048935,30]
[330135290,1719033404525,-150.0,0.00048938,120]
[330135291,1719033404548,-742390.84605475,0.00048996,120]
[330135292,1719033405143,312.83812338,0.00024645,60]
[330135293,1719033410456,-164.77,0.00033151,120]
[330135294,1719033410489,-164.77,0.00044384,120]
[330135295,1719033410521,-647652.96114694,0.00048996,120]
[330135296,1719033410547,-500.0,0.00049,120]
[330135297,1719033410573,-500000.0,0.00049,70]
[330135298,1719033410908,-200.0,0.00049,90]
[330135299,1719033410939,-9181.0,0.00049,120]
[330135300,1719033410968,-150.0,0.00049094,120]
[330135301,1719033410996,-152.0,0.00049278,60]
[330135302,1719033411022,-973.18,0.00049315,120]
[330135303,1719033411048,-1560.20321823,0.00049315,30]
[330135304,1719033411075,-1355.98876305,0.00049315,30]
[330135305,1719033416948,269.219,0.00047956,30]
[330135306,1719033422656,172.0,0.00047,90]
[330135307,1719033422998,172.0,0.00048904,90]
[330135323,1719034090412,151.91,0.00018849,30]
[330135324,1719034155189,-573.87,0.00012671,2]
[330135325,1719034155208,-467.5535,0.000138,2]
[330135326,1719034155231,-1857.8127,0.000138,2]
[330135332,1719034232143,-300.0,0.00013799,2]
[330135333,1719034232152,-794.5119612,0.000138,2]
[330135334,1719034232180,-2073.88161175,0.000138,2]
[330135335,1719034232191,-683.52715316,0.000138,2]
[330135336,1719034232200,-1000.0,0.000138,2]
[330135337,1719034232211,-14053.3678,0.000138,2]
[330135338,1719034232222,-1838.40050097,0.000138,2]
[330135339,1719034232231,-2747.4152,0.000138,2]
[330135340,1719034232240,-24684.38941947,0.000138,2]
[330135341,1719034232249,-683.52715314,0.00013814,2]
[330135343,1719034232258,-683.52715314,0.00013829,2]
[330135345,1719034232267,-683.52715314,0.00013843,2]
[330135346,1719034232276,-683.52715314,0.00013857,2]
[330135347,1719034232285,-683.52715314,0.00013871,2]
[330135348,1719034232294,-683.52715314,0.00013886,2]
[330135349,1719034232303,-6687.7522,0.000139,2]
[330135350,1719034232313,-175.62575415,0.000139,2]
[330135351,1719034232322,-497.8815,0.000139,2]
[330135352,1719034232331,-752.5175,0.000139,2]
[330135353,1719034232341,-1000.0,0.000139,2]
[330135354,1719034232350,-168.68431454,0.000139,2]
[330135355,1719034232358,-30342.4791,0.000139,2]
[330135356,1719034232368,-2566.86575677,0.000139,2]
[330135357,1719034232397,-97433.13424323,0.000139,2]
[330135358,1719034232406,-43179.4876061,0.000139,2]
[330135359,1719034232417,-549.3079707,0.000139,2]
[330135360,1719034232427,-1657.86901105,0.000139,2]
[330135361,1719034238008,-211.9917,0.000138,2]
[330135362,1719034238018,-7808.44147819,0.000139,2]
[330135363,1719034238030,-4003.62304756,0.000139,2]
[330135364,1719034238074,-408.7826365,0.000139,2]
[330135367,1719034240012,-5442.56114627,0.000139,2]
[330135368,1719034240028,-643.65507974,0.000139,2]
[330135369,1719034240047,-668.95127991,0.000139,2]
[330135370,1719034240063,-250.0,0.000139,2]
[330135371,1719034240081,-691.31999944,0.000139,2]
[330135372,1719034240097,-825.632,0.000139,2]
[330135373,1719034240145,-312.16935958,0.000139,2]
[330135374,1719034240163,-7053.221239,0.000139,2]
[330135375,1719034240179,-284.54746564,0.000139,2]
[330135376,1719034240196,-3288.83314401,0.000139,2]
[330135377,1719034240215,-298.31412405,0.000139,2]
[330135378,1719034240231,-813.13050965,0.000139,2]
[330135379,1719034240246,-1103.8323,0.000139,2]
[330135380,1719034240341,-406.24944498,0.000139,2]
[330135381,1719034240359,-680.22686258,0.000139,2]
[330135382,1719034240374,-137100.0,0.000139,2]
[330135383,1719034240388,-924.1338722,0.000139,2]
[330135384,1719034240425,-2873.71452217,0.000139,2]
[330135385,1719034240441,-411.63357934,0.000139,2]
[330135386,1719034240521,-23320.36232134,0.000139,2]